fUSD/lending_fUSD_20250904
["ID","MTS","AMOUNT","RATE_DAILY","PERIOD"]
[383553696,1756989054230,-3034.21,0.00021917,2]
[383553697,1756989054239,-469.31,0.00021917,2]
[383553698,1756989054248,-400.0,0.00021917,2]
[383553699,1756989054258,-400.0,0.00021917,2]
[383553700,1756989054268,-881.86,0.00021917,2]
[383553701,1756989054278,-535.11018813,0.00021917,2]
[383553702,1756989054290,-1012.57,0.00021917,2]
[383553703,1756989054300,-403.91673875,0.00021917,2]
[383553704,1756989054308,-151.0,0.00021917,2]
[383553705,1756989054318,-400.0,0.00021917,2]
[383553706,1756989054328,-1811.08,0.00021917,2]
[383553707,1756989054339,-400.0,0.00021917,2]
[383553708,1756989054349,-400.0,0.00021917,2]
[383553709,1756989054358,-400.0,0.00021917,2]
[383553710,1756989054370,-400.0,0.00021917,2]
[383553711,1756989054379,-400.0,0.00021917,2]
[383553712,1756989054389,-1090.5,0.00021917,2]
[383553713,1756989054398,-400.0,0.00021917,2]
[383553714,1756989054408,-400.0,0.00021917,2]
[383553715,1756989054418,-400.0,0.00021917,2]
[383553716,1756989054427,-400.0,0.00021917,2]
[383553717,1756989054437,-400.0,0.00021917,2]
[383553718,1756989054446,-400.0,0.00021917,2]
[383553719,1756989054456,-400.0,0.00021917,2]
[383553720,1756989054465,-400.0,0.00021917,2]
[383553721,1756989054476,-400.0,0.00021917,2]
[383553722,1756989054485,-400.0,0.00021917,2]
[383553723,1756989054494,-400.0,0.00021917,2]
[383553724,1756989054504,-404.02155154,0.00021917,2]
[383553725,1756989054513,-400.0,0.00021917,2]
[383553726,1756989054523,-248.27104238,0.00021917,2]
[383553727,1756989054532,-400.0,0.00021917,2]
[383553728,1756989054541,-400.0,0.00021917,2]
[383553729,1756989054551,-400.0,0.00021917,2]
[383553730,1756989054561,-400.0,0.00021917,2]
[383553731,1756989054570,-400.0,0.00021917,2]
[383553732,1756989054580,-763.54,0.00021917,2]
[383553733,1756989054590,-400.0,0.00021917,2]
[383553734,1756989054599,-604.78,0.00021917,2]
[383553735,1756989054608,-400.0,0.00021917,2]
[383553736,1756989054618,-400.0,0.00021917,2]
[383553737,1756989054627,-400.0,0.00021917,2]
[383553738,1756989054637,-400.0,0.00021917,2]
[383553739,1756989054646,-651.32,0.00021917,2]
[383553740,1756989054655,-400.0,0.00021917,2]
[383553741,1756989054665,-400.0,0.00021917,2]
[383553742,1756989054675,-289.88118331,0.00021917,2]
[383553743,1756989054684,-400.0,0.00021917,2]
[383553744,1756989054693,-400.0,0.00021917,2]
[383553745,1756989054703,-400.0,0.00021917,2]
[383553746,1756989054712,-500.0,0.00021917,2]
[383553747,1756989054722,-1485.29,0.00021917,2]
[383553748,1756989054732,-500.0,0.00021917,2]
[383553749,1756989054742,-400.0,0.00021917,2]
[383553750,1756989054751,-2515.46,0.00021917,2]
[383553751,1756989054760,-1638.16,0.00021917,2]
[383553752,1756989054770,-1222.86,0.00021917,2]
[383553753,1756989054779,-400.0,0.00021917,2]
[383553754,1756989054789,-400.0,0.00021917,2]
[383553755,1756989054799,-400.0,0.00021917,2]
[383553756,1756989054808,-400.0,0.00021917,2]
[383553757,1756989054818,-400.0,0.00021917,2]
[383553758,1756989054828,-400.0,0.00021917,2]
[383553759,1756989054838,-1763.19,0.00021917,2]
[383553760,1756989054847,-408.56349916,0.00021917,2]
[383553761,1756989054857,-400.0,0.00021917,2]
[383553762,1756989054866,-407.48831104,0.00021917,2]
[383553763,1756989054876,-400.0,0.00021917,2]
[383553764,1756989054885,-400.0,0.00021917,2]
[383553765,1756989054895,-400.0,0.00021917,2]
[383553766,1756989054904,-402.3576064,0.00021917,2]
[383553767,1756989054914,-400.0,0.00021917,2]
[383553768,1756989054923,-400.0,0.00021917,2]
[383553769,1756989054932,-400.0,0.00021917,2]
[383553770,1756989054941,-474.27,0.00021917,2]
[383553771,1756989054951,-400.0,0.00021917,2]
[383553772,1756989054961,-400.0,0.00021917,2]
[383553773,1756989054971,-1811.61,0.00021917,2]
[383553774,1756989054980,-420.37,0.00021917,2]
[383553775,1756989054989,-400.0,0.00021917,2]
[383553776,1756989054999,-400.0,0.00021917,2]
[383553777,1756989055008,-400.0,0.00021917,2]
[383553778,1756989055019,-400.0,0.00021917,2]
[383553779,1756989055028,-400.0,0.00021917,2]
[383553780,1756989055037,-400.0,0.00021917,2]
[383553781,1756989055048,-400.0,0.00021917,2]
[383553782,1756989055058,-440.10148395,0.00021917,2]
[383553783,1756989055067,-402.80679374,0.00021917,2]
[383553784,1756989055077,-400.0,0.00021917,2]
[383553785,1756989055086,-898.39,0.00021917,2]
[383553786,1756989055096,-400.0,0.00021917,2]
[383553787,1756989055105,-400.19569824,0.00021917,2]
[383553788,1756989055114,-400.0,0.00021917,2]
[383553789,1756989055123,-400.0,0.00021917,2]
[383553790,1756989055133,-400.0,0.00021917,2]
[383553791,1756989055142,-400.0,0.00021917,2]
[383553792,1756989055151,-1040.28,0.00021917,2]
[383553793,1756989055160,-300.0,0.00021917,2]
[383553794,1756989055170,-400.0,0.00021917,2]
[383553795,1756989055179,-400.0,0.00021917,2]
[383553796,1756989055189,-400.0,0.00021917,2]
[383553797,1756989055199,-500.0,0.00021917,2]
[383553798,1756989055211,-500.0,0.00021917,2]
[383553799,1756989055220,-400.0,0.00021917,2]
[383553800,1756989055231,-400.0,0.00021917,2]
[383553801,1756989055244,-454.76,0.00021917,2]
[383553802,1756989055254,-400.0,0.00021917,2]
[383553803,1756989055264,-740.59,0.00021917,2]
[383553804,1756989055274,-400.0,0.00021917,2]
[383553805,1756989055285,-1107.99,0.00021917,2]
[383553806,1756989055298,-400.0,0.00021917,2]
[383553807,1756989055307,-400.0,0.00021917,2]
[383553808,1756989055317,-400.0,0.00021917,2]
[383553809,1756989055327,-400.0,0.00021917,2]
[383553810,1756989055336,-400.0,0.00021917,2]
[383553811,1756989055346,-400.0,0.00021917,2]
[383553812,1756989055355,-400.0,0.00021917,2]
[383553813,1756989055365,-400.0,0.00021917,2]
[383553814,1756989055374,-400.0,0.00021917,2]
[383553815,1756989055384,-151.0,0.00021917,2]
[383553816,1756989055393,-400.0,0.00021917,2]
[383553817,1756989055403,-400.0,0.00021917,2]
[383553818,1756989055412,-400.0,0.00021917,2]
[383553819,1756989055422,-400.0,0.00021917,2]
[383553820,1756989055431,-400.0,0.00021917,2]
[383553821,1756989055441,-400.0,0.00021917,2]
[383553822,1756989055450,-1537.6,0.00021917,2]
[383553823,1756989055459,-364.19698735,0.00021917,2]
[383553824,1756989055467,-400.0,0.00021917,2]
[383553825,1756989055476,-400.0,0.00021917,2]
[383553826,1756989055485,-400.0,0.00021917,2]
[383553827,1756989055494,-400.0,0.00021917,2]
[383553828,1756989055504,-400.0,0.00021917,2]
[383553829,1756989055513,-400.0,0.00021917,2]
[383553830,1756989055523,-400.0,0.00021917,2]
[383553831,1756989055532,-400.0,0.00021917,2]
[383553832,1756989055542,-400.0,0.00021917,2]
[383553833,1756989055552,-166.54,0.00021917,2]
[383553834,1756989055562,-1859.57,0.00021917,2]
[383553835,1756989055571,-400.0,0.00021917,2]
[383553836,1756989055581,-400.0,0.00021917,2]
[383553837,1756989055591,-739.32,0.00021917,2]
[383553838,1756989055600,-400.0,0.00021917,2]
[383553839,1756989055610,-400.0,0.00021917,2]
[383553840,1756989055619,-400.0,0.00021917,2]
[383553841,1756989055629,-400.73157483,0.00021917,2]
[383553842,1756989055638,-403.97952828,0.00021917,2]
[383553843,1756989055649,-400.0,0.00021917,2]
[383553844,1756989055659,-400.0,0.00021917,2]
[383553845,1756989055670,-400.0,0.00021917,2]
[383553846,1756989055680,-400.0,0.00021917,2]
[383553847,1756989055689,-1009.57,0.00021917,2]
[383553848,1756989055699,-400.0,0.00021917,2]
[383553849,1756989055709,-479.55,0.00021917,2]
[383553850,1756989055719,-400.0,0.00021917,2]
[383553851,1756989055728,-400.0,0.00021917,2]
[383553852,1756989055739,-400.0,0.00021917,2]
[383553853,1756989055748,-400.0,0.00021917,2]
[383553854,1756989055758,-400.0,0.00021917,2]
[383553855,1756989055769,-400.0,0.00021917,2]
[383553856,1756989055778,-402.9200909,0.00021917,2]
[383553857,1756989055787,-1000.0,0.00021917,2]
[383553858,1756989055797,-400.0,0.00021917,2]
[383553859,1756989055806,-400.0,0.00021917,2]
[383553860,1756989055815,-400.0,0.00021917,2]
[383553861,1756989055826,-400.0,0.00021917,2]
[383553862,1756989055836,-982.11,0.00021917,2]
[383553863,1756989055846,-400.0,0.00021917,2]
[383553864,1756989055856,-986.76,0.00021917,2]
[383553865,1756989055868,-400.0,0.00021917,2]
[383553866,1756989055877,-400.0,0.00021917,2]
[383553867,1756989055887,-400.0,0.00021917,2]
[383553868,1756989055898,-401.49082352,0.00021917,2]
[383553869,1756989055908,-400.0,0.00021917,2]
[383553870,1756989055918,-400.0,0.00021917,2]
[383553871,1756989055929,-400.0,0.00021917,2]
[383553872,1756989055938,-400.0,0.00021917,2]
[383553873,1756989055948,-400.0,0.00021917,2]
[383553874,1756989055958,-400.0,0.00021917,2]
[383553875,1756989055969,-400.0,0.00021917,2]
[383553876,1756989055979,-400.0,0.00021917,2]
[383553877,1756989055988,-400.0,0.00021917,2]
[383553878,1756989055999,-400.0,0.00021917,2]
[383553879,1756989056008,-400.0,0.00021917,2]
[383553880,1756989056018,-400.0,0.00021917,2]
[383553881,1756989056028,-1515.14,0.00021917,2]
[383553882,1756989056038,-400.0,0.00021917,2]
[383553883,1756989056048,-400.0,0.00021917,2]
[383553884,1756989056059,-400.0,0.00021917,2]
[383553885,1756989056068,-400.0,0.00021917,2]
[383553886,1756989056078,-400.0,0.00021917,2]
[383553887,1756989056087,-403.84466226,0.00021917,2]
[383553888,1756989056098,-400.0,0.00021917,2]
[383553889,1756989056107,-400.0,0.00021917,2]
[383553890,1756989056118,-402.88529794,0.00021917,2]
[383553891,1756989056129,-400.0,0.00021917,2]
[383553892,1756989056139,-400.0,0.00021917,2]
[383553893,1756989056149,-3235.25,0.00021917,2]
[383553894,1756989056160,-400.0,0.00021917,2]
[383553895,1756989056170,-400.0,0.00021917,2]
[383553896,1756989056180,-400.0,0.00021917,2]
[383553897,1756989056190,-400.0,0.00021917,2]
[383553898,1756989056202,-400.0,0.00021917,2]
[383553899,1756989056212,-1572.42,0.00021917,2]
[383553900,1756989056222,-408.18,0.00021917,2]
[383553901,1756989056233,-400.0,0.00021917,2]
[383553902,1756989056242,-400.0,0.00021917,2]
[383553903,1756989056253,-400.0,0.00021917,2]
[383553904,1756989056262,-994.55,0.00021917,2]
[383553905,1756989056272,-400.0,0.00021917,2]
[383553906,1756989056284,-1133.3,0.00021917,2]
[383553907,1756989056295,-403.19561284,0.00021917,2]
[383553908,1756989056305,-400.0,0.00021917,2]
[383553909,1756989056315,-400.0,0.00021917,2]
[383553910,1756989056326,-400.0,0.00021917,2]
[383553911,1756989056336,-400.0,0.00021917,2]
[383553912,1756989056346,-400.0,0.00021917,2]
[383553913,1756989056356,-400.0,0.00021917,2]
[383553914,1756989056368,-400.0,0.00021917,2]
[383553915,1756989056379,-400.0,0.00021917,2]
[383553916,1756989056389,-400.0,0.00021917,2]
[383553917,1756989056399,-400.0,0.00021917,2]
[383553918,1756989056408,-400.0,0.00021917,2]
[383553919,1756989056418,-877.64,0.00021917,2]
[383553920,1756989056428,-400.0,0.00021917,2]
[383553921,1756989056438,-400.0,0.00021917,2]
[383553922,1756989056448,-400.0,0.00021917,2]
[383553923,1756989056457,-495.2,0.00021917,2]
[383553924,1756989056466,-400.0,0.00021917,2]
[383553925,1756989056476,-400.0,0.00021917,2]
[383553926,1756989056485,-321.01606187,0.00021917,2]
[383553927,1756989056494,-775.05,0.00021917,2]
[383553928,1756989056503,-400.0,0.00021917,2]
[383553929,1756989056512,-400.0,0.00021917,2]
[383553930,1756989056521,-400.0,0.00021917,2]
[383553931,1756989056530,-400.0,0.00021917,2]
[383553932,1756989056540,-400.0,0.00021917,2]
[383553933,1756989056549,-400.0,0.00021917,2]
[383553934,1756989056559,-405.30481431,0.00021917,2]
[383553935,1756989056569,-400.0,0.00021917,2]
[383553936,1756989056579,-400.0,0.00021917,2]
[383553937,1756989056590,-400.0,0.00021917,2]
[383553938,1756989056600,-483.75,0.00021917,2]
[383553939,1756989056610,-400.0,0.00021917,2]
[383553940,1756989056621,-1564.78,0.00021917,2]
[383553941,1756989056632,-400.0,0.00021917,2]
[383553942,1756989056642,-411.73786879,0.00021917,2]
[383553943,1756989056652,-400.0,0.00021917,2]
[383553944,1756989056848,-400.0,0.00021917,2]
[383553945,1756989056868,-400.0,0.00021917,2]
[383553946,1756989056878,-400.0,0.00021917,2]
[383553947,1756989056888,-400.0,0.00021917,2]
[383553948,1756989056898,-400.0,0.00021917,2]
[383553949,1756989056907,-400.0,0.00021917,2]
[383553950,1756989056918,-400.0,0.00021917,2]
[383553951,1756989056927,-400.0,0.00021917,2]
[383553952,1756989056936,-406.57982751,0.00021917,2]
[383553953,1756989056945,-154.87336667,0.00021917,2]
[383553954,1756989056958,-400.0,0.00021917,2]
[383553955,1756989056968,-400.0,0.00021917,2]
[383553956,1756989056978,-400.0,0.00021917,2]
[383553957,1756989056987,-400.0,0.00021917,2]
[383553958,1756989056997,-403.01061319,0.00021917,2]
[383553959,1756989057006,-400.0,0.00021917,2]
[383553960,1756989057015,-400.0,0.00021917,2]
[383553961,1756989057025,-610.99,0.00021917,2]
[383553962,1756989057034,-400.0,0.00021917,2]
[383553963,1756989057045,-400.0,0.00021917,2]
[383553964,1756989057055,-400.0,0.00021917,2]
[383553965,1756989057064,-400.0,0.00021917,2]
[383553966,1756989057074,-400.0,0.00021917,2]
[383553967,1756989057083,-402.90799224,0.00021917,2]
[383553968,1756989057092,-400.0,0.00021917,2]
[383553969,1756989057102,-400.0,0.00021917,2]
[383553970,1756989057111,-400.0,0.00021917,2]
[383553971,1756989057121,-400.0,0.00021917,2]
[383553972,1756989057131,-400.0,0.00021917,2]
[383553973,1756989057140,-400.0,0.00021917,2]
[383553974,1756989057149,-400.0,0.00021917,2]
[383553975,1756989057159,-1012.33,0.00021917,2]
[383553976,1756989057168,-400.0,0.00021917,2]
[383553977,1756989057177,-413.13616144,0.00021917,2]
[383553978,1756989057187,-1280.45,0.00021917,2]
[383553979,1756989057197,-400.0,0.00021917,2]
[383553980,1756989057206,-400.0,0.00021917,2]
[383553981,1756989057216,-400.0,0.00021917,2]
[383553982,1756989057225,-400.0,0.00021917,2]
[383553983,1756989057235,-403.71783169,0.00021917,2]
[383553984,1756989057244,-400.0,0.00021917,2]
[383553985,1756989057255,-151.0,0.00021918,2]
[383553986,1756989057265,-151.0,0.00021918,2]
[383553987,1756989057275,-151.0,0.00021918,2]
[383553988,1756989057287,-151.0,0.00021918,2]
[383553989,1756989057298,-151.0,0.00021918,2]
[383553990,1756989057308,-151.0,0.00021918,2]
[383553991,1756989057317,-151.0,0.00021918,2]
[383553992,1756989057327,-151.0,0.00021918,2]
[383553993,1756989057335,-151.0,0.00021918,2]
[383553994,1756989057344,-151.0,0.00021918,2]
[383553995,1756989057353,-151.0,0.00021918,2]
[383553996,1756989057363,-151.0,0.00021918,2]
[383553997,1756989057373,-151.0,0.00021918,2]
[383553998,1756989057383,-5000.0,0.00021918,2]
[383553999,1756989057392,-300.0,0.00021918,2]
[383554000,1756989057404,-151.01716883,0.00021918,2]
[383554001,1756989057415,-168.0,0.00021957,2]
[383554002,1756989057424,-500.0,0.00021973,2]
[383554003,1756989057435,-500.0,0.00021973,2]
[383554004,1756989057446,-500.0,0.00021973,2]
[383554005,1756989057456,-500.0,0.00021973,2]
[383554006,1756989057466,-504.76404167,0.00021973,2]
[383554007,1756989057476,-500.0,0.00021973,2]
[383554008,1756989057486,-500.0,0.00021973,2]
[383554009,1756989057496,-159.07656691,0.00021983,2]
[383554010,1756989057507,-362.13520656,0.0002199,2]
[383554011,1756989057518,-300.0,0.00021999,2]
[383554012,1756989057527,-300.0,0.00021999,2]
[383554013,1756989057537,-300.0,0.00021999,2]
[383554014,1756989057547,-500.0,0.00021999,2]
[383554015,1756989057556,-500.0,0.00021999,2]
[383554016,1756989057567,-300.0,0.00021999,2]
[383554017,1756989057576,-199.19218812,0.00021999,2]
[383554018,1756989057587,-500.0,0.00021999,2]
[383554019,1756989057597,-500.0,0.00021999,2]
[383554020,1756989057607,-500.0,0.00021999,2]
[383554021,1756989057622,-500.0,0.00021999,2]
[383554022,1756989057632,-1504.7537575,0.00022,14]
[383554023,1756989057642,-63894.40916042,0.00022,2]
[383554024,1756989058097,-400.0,0.00021917,2]
[383554025,1756989058108,-89.29187735,0.00022,2]
[383554026,1756989058121,-1872.33158334,0.00022,2]
[383554027,1756989058147,-400.0,0.00021917,2]
[383554028,1756989058157,-710.12,0.00022,2]
[383554029,1756989058169,-870.60764668,0.00022,2]
[383554030,1756989058185,-12519.1618594,0.00022,2]
[383554031,1756989058228,-1888.0,0.00022,2]
[383554032,1756989058919,-2752.94,0.0002131,2]
[383554033,1756989058931,-5608.95502322,0.0002131,2]
[383554034,1756989058942,-5480.5,0.0002131,2]
[383554035,1756989058958,-1163.9177,0.0002131,2]
[383554036,1756989059063,-373.96952708,0.0002131,2]
[383554037,1756989059078,-1138.2442904,0.0002131,2]
[383554038,1756989059089,-1408.90569754,0.0002131,2]
[383554039,1756989059161,-558.96219939,0.0002131,2]
[383554040,1756989059193,-821.41334324,0.0002131,2]
[383554041,1756989059204,-1841.19221913,0.0002131,2]
[383554042,1756989059214,-400.0,0.00021917,2]
[383554043,1756989059223,-400.0,0.00021917,2]
[383554044,1756989059233,-209.32908942,0.00021917,2]
[383554045,1756989059244,-190.67091058,0.00021917,2]
[383554046,1756989059253,-400.0,0.00021917,2]
[383554047,1756989059262,-369.01300976,0.00022,2]
[383554048,1756989059273,-639.22380711,0.00022,2]
[383554050,1756989101072,206.0,0.0001827,2]
[383554051,1756989196824,917.0,0.00030137,120]
[383554054,1756989287555,250.0,0.00015,2]
[383554058,1756989369490,900.75,0.00030137,120]
[383554067,1756989560888,228.09,0.00010346,2]
[383554068,1756989560954,228.09,0.00010891,2]
[383554069,1756989561014,228.09,0.00011435,2]
[383554070,1756989561104,228.09,0.0001198,2]
[383554071,1756989561318,211.84866472,0.00012525,2]
[383554072,1756989561344,16.24133528,0.00012525,2]
[383554073,1756989561735,228.09,0.00013069,2]
[383554074,1756989561945,228.09,0.00013614,2]
[383554075,1756989562140,228.09,0.00014158,2]
[383554076,1756989562346,228.09,0.00014703,2]
[383554077,1756989562554,224.98440607,0.00015247,2]
[383554078,1756989562582,3.10559393,0.00015247,2]
[383554079,1756989562809,228.09,0.00015792,2]
[383554080,1756989563035,200.0,0.00016336,2]
[383554081,1756989563061,28.09,0.00016336,2]
[383554082,1756989563256,228.09,0.00016881,2]
[383554083,1756989563464,228.09,0.00017425,2]
[383554084,1756989563679,228.09,0.0001797,2]
[383554085,1756989563905,228.09,0.00018515,2]
[383554086,1756989566367,200.0,0.0003013,120]
[383554089,1756989619940,-171.91,0.00019059,2]
[383554090,1756989619954,-56.18,0.00019059,2]
[383554091,1756989619963,-171.91,0.0001921,2]
[383554096,1756989721310,500.0,0.00030136,120]
[383554112,1756989921656,-160.0,0.00020355,7]
[383554116,1756990000691,600.0,0.00030137,120]
[383554118,1756990014455,500.0,0.00030137,120]
[383554120,1756990029208,258.72686845,0.00030137,120]
[383554122,1756990071671,251.17,0.00030137,120]
[383554128,1756990192763,333.0,0.00030136,120]
[383554133,1756990231947,-300.0,0.00019247,2]
[383554134,1756990231957,-300.0,0.00019304,2]
[383554135,1756990231968,-206.0,0.0001936,2]
[383554136,1756990231979,-228.09,0.00019604,2]
[383554137,1756990231989,-300.0,0.00019704,2]
[383554138,1756990231999,-228.09,0.00020148,2]
[383554139,1756990232009,-158.15903737,0.00020161,2]
[383554140,1756990232019,-615.1,0.00020222,2]
[383554141,1756990232028,-267.46074303,0.00020261,2]
[383554142,1756990232038,-222.0,0.00020268,2]
[383554143,1756990232048,-164.16,0.00020268,2]
[383554144,1756990232059,-1300.0,0.00020273,2]
[383554145,1756990232068,-306.88712582,0.00020273,2]
[383554146,1756990232080,-193.11287418,0.00020273,2]
[383554147,1756990232089,-211.85,0.0002028,2]
[383554148,1756990232099,-174.69347683,0.0002028,2]
[383554149,1756990232111,-57.06652317,0.0002028,2]
[383554150,1756990232122,-543.09,0.00020406,2]
[383554151,1756990232134,-1200.0,0.0002044,2]
[383554152,1756990232147,-150.0,0.00020441,2]
[383554153,1756990232158,-150.0,0.00020441,2]
[383554154,1756990232167,-150.0,0.00020441,2]
[383554155,1756990232176,-206.0,0.0002046,2]
[383554156,1756990232185,-250.0,0.00020463,2]
[383554157,1756990232195,-150.0,0.000205,2]
[383554158,1756990232204,-150.0,0.000205,2]
[383554159,1756990232213,-284.88,0.00020522,2]
[383554160,1756990232224,-156.1,0.00020661,2]
[383554162,1756990232233,-228.09,0.00020693,2]
[383554163,1756990232242,-666.0,0.00020966,3]
[383554165,1756990232252,-250.0,0.00021131,2]
[383554166,1756990232262,-300.0,0.00021131,2]
[383554167,1756990232272,-938.6,0.00021148,2]
[383554168,1756990232281,-470.45,0.00021148,2]
[383554169,1756990232290,-470.45,0.00021148,2]
[383554170,1756990232300,-470.45,0.00021148,2]
[383554171,1756990232311,-470.45,0.00021148,2]
[383554172,1756990232320,-250.0,0.00021172,2]
[383554173,1756990232329,-300.0,0.00021172,2]
[383554174,1756990232338,-250.0,0.00021172,2]
[383554175,1756990232347,-158.15903737,0.0002121,2]
[383554176,1756990232355,-450.0,0.00021269,2]
[383554177,1756990232365,-231.76,0.00021294,2]
[383554179,1756990232375,-200.0,0.00021297,2]
[383554181,1756990232385,-151.0,0.00021297,2]
[383554182,1756990232401,-266.74940099,0.00021297,2]
[383554183,1756990232410,-500.0,0.00021297,2]
[383554185,1756990232419,-359.61562762,0.00021297,2]
[383554187,1756990232429,-500.0,0.00021297,2]
[383554189,1756990232442,-500.0,0.00021297,2]
[383554191,1756990232451,-500.0,0.00021297,2]
[383554193,1756990232461,-500.0,0.00021297,2]
[383554195,1756990232470,-500.0,0.00021297,2]
[383554197,1756990232480,-500.0,0.00021297,2]
[383554198,1756990232490,-500.0,0.00021297,2]
[383554199,1756990232499,-500.0,0.00021297,2]
[383554200,1756990232509,-500.0,0.00021297,2]
[383554201,1756990232518,-500.0,0.00021297,2]
[383554202,1756990232527,-511.77843574,0.00021297,2]
[383554203,1756990232536,-3072.0,0.0002131,2]
[383554204,1756990232545,-3382.0,0.0002131,2]
[383554205,1756990232555,-924.0,0.0002131,2]
[383554206,1756990232564,-2035.0,0.0002131,2]
[383554207,1756990232574,-1258.0,0.0002131,2]
[383554208,1756990232583,-1577.0,0.0002131,2]
[383554209,1756990232592,-1300.0,0.0002131,2]
[383554210,1756990232601,-567.0,0.0002131,2]
[383554211,1756990232610,-600.0,0.0002131,2]
[383554212,1756990232620,-896.0,0.0002131,2]
[383554213,1756990232629,-71.65273662,0.0002131,2]
[383554214,1756990232641,-1103.34726338,0.0002131,2]
[383554215,1756990232651,-476.82578015,0.0002131,2]
[383554216,1756990232664,-334.17421985,0.0002131,2]
[383554217,1756990232674,-2241.0,0.0002131,2]
[383554218,1756990232684,-1245.80958985,0.0002131,2]
[383554219,1756990232738,-560.79451621,0.0002131,2]
[383554220,1756990232759,-368.0,0.0002131,2]
[383554221,1756990232773,-1731.38816097,0.0002131,2]
[383554222,1756990232784,-257.00773297,0.0002131,2]
[383554223,1756990232793,-45.01227103,0.0002131,2]
[383554224,1756990232804,-1391.34623035,0.0002131,2]
[383554225,1756990232815,-1734.85251978,0.0002131,2]
[383554226,1756990232826,-7768.21997397,0.0002131,2]
[383554227,1756990232841,-574.07038451,0.0002131,2]
[383554228,1756990232868,-351.01788644,0.0002131,2]
[383554229,1756990232879,-747.33914193,0.0002131,2]
[383554230,1756990232891,-1091.46897231,0.0002131,2]
[383554231,1756990232904,-906.38822463,0.0002131,2]
[383554232,1756990232915,-6539.28439505,0.0002131,2]
[383554233,1756990232925,-724.0,0.0002131,2]
[383554234,1756990232935,-6163.0,0.0002131,2]
[383554235,1756990232944,-500.0,0.00021352,2]
[383554236,1756990232953,-1300.0,0.00021369,2]
[383554237,1756990232964,-500.0,0.00021369,2]
[383554238,1756990232973,-2000.0,0.000214,2]
[383554239,1756990232983,-543.0,0.000214,2]
[383554240,1756990232993,-206.0,0.0002155,2]
[383554241,1756990233003,-514.64478986,0.00021586,2]
[383554242,1756990233013,-212.59699798,0.00021586,2]
[383554243,1756990233024,-160.0,0.00021586,2]
[383554244,1756990233033,-160.0,0.00021586,2]
[383554245,1756990233043,-160.0,0.00021586,2]
[383554246,1756990233052,-3010.21128815,0.00021586,2]
[383554247,1756990233062,-277.35679052,0.0002163,2]
[383554248,1756990233072,-300.0,0.000217,7]
[383554249,1756990233081,-1565.62786182,0.00021777,2]
[383554262,1756990237849,-258.23113818,0.00021777,2]
[383554263,1756990237859,-700.0,0.000218,7]
[383554265,1756990237868,-400.0,0.00021817,2]
[383554267,1756990237877,-194.78805672,0.00021817,2]
[383554269,1756990237887,-1776.9521651,0.00021817,2]
[383554274,1756990237927,-6294.00145,0.00021817,2]
[383554275,1756990237938,-363.75947388,0.00021817,2]